Cogmind - Beta 13 @@@ ROGUE MODE // 2024.03.14 @ 21:27:55 Player: Cheeriohz Result: Destroyed by DAS Turret with DAS Cannon Performance ------------- Evolutions (0) 0 Regions Visited (3) 600 Robots Destroyed (5) 25 Value Destroyed (49) 49 Prototype IDs (3) 60 Alien Tech Used (0) 0 Bonus (-199) -199 TOTAL SCORE: 535 Bonus ------- Aligned with FarCom 300 Friendly Fire -499 Cogmind --------- Core Integrity 0/250 Matter 48/300 Energy 125/125 System Corruption 0% Temperature Cool (0) Movement Core (850) Ox16 Location -10/Exiles Parts ------- > --- POWER (1) -------- Light Ion Engine > --- PROPULSION (2) --- Light Treads > --- UTILITY (2) ------ High-capacity Storage Unit > --- WEAPON (2) ------- 8R-AWN's Boregun > --- INVENTORY (20) --- Sensor Array Latent Energy Streamer Beam Cannon XL Autogun Array Grenade Launcher Peak State ------------ > --- POWER ------------ Light Ion Engine > --- PROPULSION ------- Wheel Wheel > --- UTILITY ---------- Small Storage Unit High-capacity Storage Unit > --- WEAPON ----------- Latent Energy Streamer Assault Rifle > --- INVENTORY -------- Light Ion Engine Light Treads Light Treads Wheel Sensor Array Beam Cannon Assault Rifle Light Assault Rifle XL Autogun Array Light Cannon Grenade Launcher [Rating: 20] Favorites ----------- Power Light Ion Engine Engine Light Ion Engine Propulsion Wheel Treads Light Treads Leg Aluminum Leg Wheel Wheel Utility Small Storage Unit Device Sensor Array Storage Small Storage Unit Weapon Assault Rifle Energy Cannon Beam Cannon Ballistic Gun Assault Rifle Ballistic Cannon Light Cannon Launcher Grenade Launcher Build | -11 -10 -10 -10 ------- Run | Yrd Mat Min Exi Slots Evolved . | . . . . Power . | . . . . Propulsion . | . . . . Utility . | . . . . Weapon . | . . . . Parts Attached 16 | 2 2 . 12 Power 1 | . . . 1 Engine 1 | . . . 1 Core . | . . . . Reactor . | . . . . Propulsion 5 | 2 . . 3 Treads 2 | . . . 2 Leg . | . . . . Wheel 3 | 2 . . 1 Hover . | . . . . Flight . | . . . . Utility 3 | . 1 . 2 Device 1 | . 1 . . Storage 2 | . . . 2 Processor . | . . . . Hackware . | . . . . Protection . | . . . . Artifact . | . . . . Weapon 7 | . 1 . 6 Energy Gun . | . . . . Energy Cannon 2 | . 1 . 1 Ballistic Gun 3 | . . . 3 Ballistic Cannon 1 | . . . 1 Launcher 1 | . . . 1 Special Weapon . | . . . . Impact Weapon . | . . . . Slashing Weapon . | . . . . Piercing Weapon . | . . . . Special Melee Weapon . | . . . . Unidentified Prototypes 3 | . . . 3 Parts Lost 9 | . . . 9 Power 1 | . . . 1 Propulsion 4 | . . . 4 Utility . | . . . . Weapon 4 | . . . 4 Highest Loss Streak 6 | . . . 6 To Critical Strikes 4 | . . . 4 Average Slot Usage (%) 89 | . 98 100 84 Engine 11 | . 14 14 10 Treads 2 | . . . 3 Wheel 21 | . 28 28 18 Device 7 | . 12 14 5 Storage 18 | . 14 14 20 Energy Cannon 9 | . 12 14 7 Ballistic Gun 15 | . 15 14 15 Naked Turns . | . . . . Heaviest Build 60 | 11 14 14 60 Greatest Support 20 | 20 20 20 20 Greatest Overweight (x) 5 | . . . 5 Average Overweight (x) . | . . . 1 Largest Inventory Capacity 20 | 8 8 8 20 Average Capacity 14 | 8 8 8 17 Most Carried 15 | 7 8 8 15 Average Carried 9 | 5 7 8 10 Final Capacity 20 | 8 8 8 20 Final Carried 8 | 5 8 8 8 Class Distribution -------------------- 100% | Mutant Dominant Class ---------------- Mutant | -10/Materials Mutant | -10/Mines Mutant | -10/Exiles Resources | -11 -10 -10 -10 ----------- Run | Yrd Mat Min Exi Matter Collected 354 | 236 34 11 73 Remotely . | . . . . Salvage Created 215 | 95 40 11 69 Parts 9 | 5 3 1 . Haulers Intercepted . | . . . . Recyclers Shooed . | . . . . Parts Field Recycled . | . . . . Retrieved Matter . | . . . . Parts Self-Destructed . | . . . . Prevented . | . . . . Kills | -11 -10 -10 -10 ------- Run | Yrd Mat Min Exi Combat Hostiles Destroyed 5 | . 1 . 4 Melee 1 | . . . 1 Cannons 1 | . 1 . . AOE 3 | . . . 3 Classes Destroyed 5 | 2 1 1 1 Worker 1 | . . 1 . Tunneler 1 | 1 . . . Recycler 1 | 1 . . . Grunt 1 | . 1 . . Assembled 6 | . . . 6 Best Kill Streak 3 | 2 1 1 3 Combat Bots Only 3 | . 1 . 3 Max Kills in Single Turn 3 | 1 1 1 3 Gunslinging . | . . . . Exploded 2 | . . . 2 Melee 1 | . . . 1 Uniques/NPCs Destroyed 1 | . . . 1 8R-AWN (-10/Exiles) Combat | -11 -10 -10 -10 -------- Run | Yrd Mat Min Exi Hostile Shots Fired 87 | . . . 87 Missed 19 | . . . 19 Damage Taken 1342 | . . . 1342 Core 286 | . . . 286 Absorbed by Shields . | . . . . Core Remaining (%) 100 | 100 . . . Volleys Fired 66 | 4 6 3 53 Largest 2 | 2 2 2 2 Hottest 80 | 40 80 80 55 Shots Fired 111 | 8 12 6 85 Gun 90 | 8 8 3 71 Cannon 18 | . 4 3 11 Launcher 3 | . . . 3 Special . | . . . . Kinetic 101 | 8 8 3 82 Thermal 7 | . 4 3 . Explosive 3 | . . . 3 Electromagnetic . | . . . . Robot Hit Streak 9 | 4 2 3 9 Robot Miss Streak 3 | 3 3 2 2 Penetration Max . | . . . . Secondary Targets . | . . . . Shots Hit Robots 67 | 4 5 3 55 Core Hits 30 | 3 2 1 24 Critical Kills . | . . . . Critical Parts Destroyed . | . . . . Critical Strikes 3 | . . . 3 Destroy 2 | . . . 2 Blast 1 | . . . 1 Melee Attacks . | . . . . Impact . | . . . . Slashing . | . . . . Piercing . | . . . . Sneak Attacks . | . . . . Combat Hostiles . | . . . . Follow-up Attacks . | . . . . Damage Inflicted 1081 | 36 59 46 940 Guns 603 | 36 42 10 515 Cannons 163 | . 17 36 110 Explosions 310 | . . . 310 Melee . | . . . . Ramming 5 | . . . 5 Kinetic 713 | 36 42 10 625 Thermal 53 | . 17 36 . Explosive 310 | . . . 310 Electromagnetic . | . . . . Impact . | . . . . Slashing . | . . . . Piercing . | . . . . Highest Corruption . | . . . . Average Corruption . | . . . . Corruption Purged . | . . . . Corruption Blocked . | . . . . Overload Shots . | . . . . Overflow Damage . | . . . . Projectiles . | . . . . Explosions . | . . . . Melee . | . . . . Knockbacks 3 | . . . 3 Impact . | . . . . Kinetic 3 | . . . 3 Secondary . | . . . . Self-Inflicted Damage 4 | . . . 4 Shots 1 | . . . 1 Rammed . | . . . . Targets Rammed 1 | . . . 1 Kicked . | . . . . Crushed 1 | . . . 1 Highest Temperature 36 | . 36 36 8 Average Temperature 10 | . 16 17 3 Received Heat Transfer 9 | . . . 9 Siege Activations . | . . . . Robots Corrupted . | . . . . Combat Hostiles . | . . . . Parts Fried . | . . . . Impact Corruptions . | . . . . Robots Melted . | . . . . Combat Hostiles . | . . . . Parts Melted . | . . . . Heat Transferred 111 | . 37 74 . Parts Sabotaged . | . . . . Parts Stolen . | . . . . Parts Stripped . | . . . . Power Chain Reactions . | . . . . Alert | -11 -10 -10 -10 ------- Run | Yrd Mat Min Exi Peak Influence 83 | 10 83 36 . Initial 31 | . 6 31 . Average 37 | 6 42 35 . Maximum Alert Level . | . . . . Low Security (%) 100 | 100 100 100 . Level 1 . | . . . . Level 2 . | . . . . Level 3 . | . . . . Level 4 . | . . . . Level 5 . | . . . . High Security . | . . . . Max Security . | . . . . Squads Dispatched 1 | . 1 . . Investigation . | . . . . Extermination . | . . . . Reinforcement 1 | . 1 . . Assault . | . . . . Garrison . | . . . . Intercept . | . . . . Searches Triggered . | . . . . Construction Impeded . | . . . . Haulers Reinforced . | . . . . Active Scanning Responses . | . . . . Cargo Convoy Interrupts . | . . . . Stealth | -11 -10 -10 -10 --------- Run | Yrd Mat Min Exi Distress Signals . | . . . . Communications Jammed . | . . . . Distress Signals . | . . . . Times Spotted 9 | . 4 . 5 Peak Tracking Total 4 | . 2 . 4 Tactical Retreats 1 | . . . 1 Traps | -11 -10 -10 -10 ------- Run | Yrd Mat Min Exi Traps Triggered . | . . . . Indirectly . | . . . . Trap Hack Attempts . | . . . . Triggered . | . . . . Disarmed . | . . . . Reprogrammed . | . . . . Reused . | . . . . Traps Extracted . | . . . . Installed . | . . . . Triggered . | . . . . Machines | -11 -10 -10 -10 ---------- Run | Yrd Mat Min Exi Machines Disabled 3 | . . . 3 Max in Single Turn 1 | . . . 1 Machines Repaired . | . . . . Machines Dismantled . | . . . . Machines Sabotaged . | . . . . Overloaded Fab Kills . | . . . . Hacking | -11 -10 -10 -10 --------- Run | Yrd Mat Min Exi Machines Accessed 3 | . 2 . 1 Terminals 2 | . 2 . . Fabricators . | . . . . Repair Stations . | . . . . Recycling Units . | . . . . Scanalyzers . | . . . . Garrison Access . | . . . . Total Hacks 14 | . 4 . 10 Successful 13 | . 3 . 10 Failed 1 | . 1 . . Catastrophic 1 | . 1 . . Database Lockouts . | . . . . Manual 6 | . 4 . 2 Terminals 4 | . 4 . . Fabricators . | . . . . Repair Stations . | . . . . Recycling Units . | . . . . Scanalyzers . | . . . . Garrison Access . | . . . . Terminal Hacks 12 | . 2 . 10 Record 10 | . . . 10 Recall Investigation 2 | . 2 . . Fabricator Hacks . | . . . . Repair Station Hacks . | . . . . Recycling Unit Hacks . | . . . . Scanalyzer . | . . . . Garrison Access Hacks . | . . . . Unauthorized Hacks 1 | . 1 . . Terminals 1 | . 1 . . Botnet 1 | . 1 . . Fabricators . | . . . . Repair Stations . | . . . . Recycling Units . | . . . . Scanalyzers . | . . . . Garrison Access . | . . . . Data Cores Recovered . | . . . . Used . | . . . . Hacking Detections 2 | . 2 . . Full Trace Events . | . . . . Feedback Events . | . . . . Feedback Blocked . | . . . . Robot Schematics Acquired . | . . . . Robots Built . | . . . . Authchips . | . . . . Time . | . . . . Total Robot Build Rating . | . . . . Part Schematics Acquired . | . . . . Parts Built . | . . . . Authchips . | . . . . Time . | . . . . Total Part Build Rating . | . . . . Parts Repaired . | . . . . Time . | . . . . Parts Recycled . | . . . . Recycled Matter . | . . . . Retrieved Matter . | . . . . Retrieved Components . | . . . . Parts Scanalyzed . | . . . . Part Schematics Acquired . | . . . . Parts Damaged . | . . . . Bothacking | -11 -10 -10 -10 ------------ Run | Yrd Mat Min Exi Used RIF Installer . | . . . . Robots Hacked . | . . . . Non-combat . | . . . . Combat . | . . . . Robot Hacks Applied . | . . . . Relay Couplers Released . | . . . . Fabnet Peak Effective % . | . . . . Robots Rewired . | . . . . Allies Hacked . | . . . . Hacks Repelled . | . . . . Allies | -11 -10 -10 -10 -------- Run | Yrd Mat Min Exi Total Allies 3 | . . 3 . Largest Group 3 | . . 3 1 Highest-Rated Group 40 | . . 40 16 Highest-Rated Ally 16 | . . 16 16 Total Orders . | . . . . Ally Attacks 37 | . . . 37 Total Damage 140 | . . . 140 Kills 1 | . . . 1 Allies Corrupted . | . . . . Allies Melted . | . . . . Intel | -11 -10 -10 -10 ------- Run | Yrd Mat Min Exi Robot Analysis Total . | . . . . Derelict Logs Recovered . | . . . . Drone Launches . | . . . . Drone Recoveries . | . . . . Exploration | -11 -10 -10 -10 ------------- Run | Yrd Mat Min Exi Turns Passed 977 | 22 155 140 660 Spaces Moved 737 | 8 147 151 431 Core . | . . . . Treads 28 | . . . 28 Legs 1 | 1 . . . Wheels 708 | 7 147 151 403 Hover . | . . . . Flight . | . . . . Fastest Speed 80 | 80 80 80 80 Average Speed 100 | 85 80 80 115 Slowest Speed 320 | 120 80 80 320 Overloaded Moves . | . . . . Propulsion Burnouts . | . . . . Robots Hopped . | . . . . Cave-ins Triggered . | . . . . Time Travels 1 | . . . 1 Exploration Rate (%) 29 | 2 23 34 59 Regions Visited 3 Branch Regions 2 Pre-discovered Areas . | . . . . Known Exits Taken . | . . . . Unknown Exits Taken 3 | 1 1 1 . Scrap Searched . | . . . . Spaces Dug . | . . . . Terrain Destroyed 14 | . . . 14 Melee . | . . . . Projectile 3 | . . . 3 AOE 11 | . . . 11 Terrain Rammed . | . . . . Walls Destroyed . | . . . . Machines Disabled . | . . . . Actions | -11 -10 -10 -10 --------- Run | Yrd Mat Min Exi Total 865 | 16 172 165 512 Wait 30 | . 15 10 5 Move 734 | 7 146 150 431 Hop . | . . . . Pick Up 8 | . 2 1 5 Fast Attach 5 | 1 2 . 2 Attach 6 | . . . 6 Detach 4 | 1 1 . 2 Swap 5 | 1 . . 4 Drop 6 | 2 . 1 3 Fire 66 | 4 6 3 53 Melee . | . . . . Ram . | . . . . Kick . | . . . . Crush 1 | . . . 1 Escape Stasis . | . . . . Rewire . | . . . . Trap . | . . . . Miscellaneous . | . . . . Route ------- -11/Scrapyard -10/Materials -10/Mines -10/Exiles History --------- Turn | Location | Event 13 | -11/Scrapyard | Discovered new exit (range 3) 23 | -11/Scrapyard | Entered Materials 65 | -10/Materials | Discovered new exit (range 15) 178 | -10/Materials | Entered Mines 256 | -10/Mines | Assisted by bots powering up and referring to "LRC-V3" 258 | -10/Mines | Assembled infested the area 312 | -10/Mines | Build established: Mutant 315 | -10/Mines | Discovered new exit (range 5) 318 | -10/Mines | Entered Exiles 318 | -10/Exiles | Accompanied by 1 ally 337 | -10/Exiles | Met 8R-AWN 352 | -10/Exiles | Met EX-HEX 395 | -10/Exiles | Met EX-BIN 416 | -10/Exiles | Met EX-DEC 508 | -10/Exiles | Aligned with FarCom system 509 | -10/Exiles | Given EX-Vault access code 535 | -10/Exiles | Opened EX-Vault 541 | -10/Exiles | Found Prototype Energy Cannon 546 | -10/Exiles | Found Prototype Device 548 | -10/Exiles | Found Prototype Ballistic Gun 573 | -10/Exiles | Identified Chronowheel 573 | -10/Exiles | Activated Chronowheel 573 | -10/Exiles | Spacetime reconverged on an earlier point 584 | -10/Exiles | Warned to stay clear of 0b10 Research branches 667 | -10/Exiles | Identified Latent Energy Streamer 692 | -10/Exiles | Attacked by the Exiles 717 | -10/Exiles | Murdered 3 allies 783 | -10/Exiles | Lost 6 parts (1p3n2w) 791 | -10/Exiles | Core integrity fell below 50% 824 | -10/Exiles | Found Prototype Ballistic Gun 824 | -10/Exiles | Identified 8R-AWN's Boregun 837 | -10/Exiles | Core integrity fell below 20% 865 | -10/Exiles | Destroyed 8R-AWN 978 | -10/Exiles | Destroyed by DAS Turret with DAS Cannon Last Messages --------------- 00850_ HV Slug penetrates Wall. 00853_ Penetrated by HV Slug. 00853_ HV Slug penetrates Wall. 00854_ Acquired 4 matter. 00857_ Penetrated by HV Slug. 00857_ HV Slug penetrates Wall. 00860_ Penetrated by HV Slug. 00860_ HV Slug penetrates Wall. 00862_ Acquired 2 matter. 00864_ Penetrated by HV Slug. 00864_ HV Slug penetrates Wall. 00865_ Crushed 8R-AWN. 00865_ 8R-AWN destroyed. 00866_ Acquired 47 matter. 00910_ Acquired 5 matter. 00920_ Acquired 2 matter. 00964_ Dropped Sml. Storage Unit. 00977_ Acquired 6 matter. 00978_ Wheel destroyed. 00978_ Critical hit (Blast). Map ----- +----------------------------------------------------+ | ???????????????????????????#" """""""""#?????? | | ?????????????" ??????????##" ###########?????? | | ?????????????# ?????????##"" #???????????????? | | ???????????### ##??######"" #???????????????? | | ??????"#####X# #"###""""""" ##??????????????? | | ???? """""" " "" ##???########### | | ???? "" """ " #####"""""""""# | | ??? " " " """ """" | | ??? "" " | | ??? " "" | | ???# " | | ????# " | | ?????#" | | ?????#""" """""" | | ????##" ######""" | | ????#"" ""##????#####""" | | ????#""" """##?????????##""" | | ????""" """##???????????#"""" | | ???#""" ""#???????????##"" | | ???#"" ########??####"""" | | ???#""" ##aaa####""" | | ???#"" """" | | ???##"" % | | ????#"""" % | | ?????# | | ?????#" @" "" """ | | ?????#"""" ""## ##""" " " ""#" | | ?????#"" ""#### ######""" """## | | ?????#" """"##??# #????###""""### ## | | ?????#""" """#??## ####???######?##### | | ?????## ""##??#! "!#??????????????# | | ??????#"" """##???#" !#??????????????? | | ??????##""" ##????#"! "#??????????????? | | ???????##"""" ##?????#!!"" "#??????????????? | | ?????????## #??????########??????????????? | | ??????????##### ##????????????????????????????? | | ??????????????## #?????????????????????????????? | | ???????????????# #?????????????????????????????? | | ???????????????? #?????????????????????????????? | | ???????????????? ??????????????????????????????? | | ?????????????????????????????????????????????????? | | ?????????????????????????????????????????????????? | | ?????????????????????????????????????????????????? | | ?????????????????????????????????????????????????? | | ?????????????????????????????????????????????????? | | ?????????????????????????????????????????????????? | | ?????????????????????????????????????????????????? | | ?????????????????????????????????????????????????? | | ?????????????????????????????????????????????????? | | ?????????????????????????????????????????????????? | +----------------------------------------------------+ Best States ------------- Heat Dissipation 25 Energy Generation 10 Energy Capacity 125 Matter Stores 300 Matter Capacity 300 Sight Range 16 Robot Scan Range 14 Terrain Scan Density 10 Evasion (%) 44 Recoil Reduction 1 Item Schematics ----------------- None Robot Schematics ------------------ None Fabricated ------------ Nothing Alien Tech Used ----------------- None Achievements -------------- None Challenges ------------ None Game ------ Seed DecoyDirtyAutocannon Manual? 0 Play Time 00:15:27 Cumulative 68.7 hours Start 2024.03.14 @ 21:11:33 End 2024.03.14 @ 21:27:55 Sessions 1 Manual Loads 0 Difficulty Rogue Special Mode None Game No. 61 Rogue 61 Adventurer 0 Explorer 0 Win Type - Total 2 Types 2/0/0/0/0/0/0/0/0 Lore% 36 Gallery% 49 Achievement% 40 Wizard Run 0 Options --------- Layout 1 ASCII 0 Keyboard 1 Movement Numpad Keybinds 0 Fullscreen 1 Font 32/SmallcapsGlow Map View 77x35 Zoom Use 0% Tactical HUD 1 Map Filters NONE Filters NONE Steam 1 RUN: fb6c3296-1e0f-4978-823c-8ca8a6ed7365